Cogmind - Beta 11.1 @@@ ROGUE MODE // 2022.07.11 @ 00:50:10 Player: Pogmind Result: Destroyed by H-55 Commando with Gauss Rifle Performance ------------- Evolutions (1) 500 Regions Visited (6) 1200 Robots Destroyed (103) 515 Value Destroyed (1970) 1970 Prototype IDs (43) 860 Alien Tech Used (0) 0 Bonus (-702) -702 TOTAL SCORE: 4343 Bonus ------- Follower Combat Kills 14 Aligned with FarCom 300 Friendly Fire -1016 Cogmind --------- Core Integrity 0/400 Matter 300/300 Energy 310/310 System Corruption 0% Temperature Cool (0) Movement Immobile (Siege) Ox4 Location -8/Mines Parts ------- > --- POWER (1) -------- Reinforced Fission Core > --- PROPULSION (2) --- Armored Heavy Treads > --- UTILITY (4) ------ Humpback Advanced Powered Armor Advanced Powered Armor > --- WEAPON (2) ------- 8R-AWN's Boregun 8R-AWN's Boregun > --- INVENTORY (35) --- Micro Neutrino Core Light Treads Light Treads Light Treads Armored Heavy Treads Combat Antigrav System Experimental Power Amplifier Experimental Heat Sink Experimental Cooling System Experimental Cooling System Huge Storage Unit Experimental Energy Well (600) Experimental Energy Well (600) Experimental Energy Well (600) Experimental Energy Well (600) Superbattery (1500) Gravity Neutralizer Experimental Targeting Computer Experimental Core Analyzer Improved Armor Integrity Analyzer Advanced Weapon Cycler Advanced Transmission Jammer 7V-RTL's Ultimate Field Hacking Suite Hacking Suite Makeshift System Shield System Purifier AS-neutralizer No. 17b Guided Plasma Cannon Missile Launcher Missile Launcher Chainsword Longsword +1 Deploy-a-Sentry Peak State ------------ > --- POWER ------------ Reinforced Fission Core > --- PROPULSION ------- Armored Heavy Treads > --- UTILITY ---------- Humpback Advanced Powered Armor Advanced Powered Armor > --- WEAPON ----------- 8R-AWN's Boregun 8R-AWN's Boregun > --- INVENTORY -------- Micro Neutrino Core Light Treads Light Treads Light Treads Armored Heavy Treads Combat Antigrav System Experimental Power Amplifier Experimental Heat Sink Experimental Cooling System Experimental Cooling System Huge Storage Unit Experimental Energy Well Experimental Energy Well Experimental Energy Well Experimental Energy Well Superbattery Gravity Neutralizer Experimental Targeting Computer Experimental Core Analyzer Improved Armor Integrity Analyzer Advanced Weapon Cycler Advanced Transmission Jammer 7V-RTL's Ultimate Field Hacking Suite Hacking Suite Makeshift System Shield System Purifier AS-neutralizer No. 17b Guided Plasma Cannon Missile Launcher Missile Launcher Chainsword Longsword +1 Deploy-a-Sentry [Rating: 82] Favorites ----------- Power Heavy Ion Engine Engine Heavy Ion Engine Power Core Light Nuclear Core Reactor Cold Fusion Reactor Propulsion Light Treads Treads Light Treads Leg Advanced Myomer Leg Flight Unit Improved Flight Unit Utility Hardened Light Armor Plating Device Disposable Heat Sink Storage Huge Storage Unit Processor Salvage Targeting Computer Protection Hardened Light Armor Plating Weapon Advanced Beam Cannon Energy Gun Beam Rifle Energy Cannon Advanced Beam Cannon Ballistic Gun Light Assault Rifle Launcher Missile Launcher Special Weapon Plasma Cutter Impact Weapon Hammer Slashing Weapon Chainsword Build | -11 -10 -10 -9 -9 -9 -8 ------- Run | Scr Mat Min Mat Min Exi Min Slots Evolved 2 | . . . 2 . . . Power . | . . . . . . . Propulsion . | . . . . . . . Utility 2 | . . . 2 . . . Weapon . | . . . . . . . Parts Attached 168 | 7 8 8 64 9 50 22 Power 16 | 1 1 . 6 . 6 2 Engine 8 | 1 1 . 2 . 4 . Core 7 | . . . 4 . 1 2 Reactor 1 | . . . . . 1 . Propulsion 32 | 2 1 1 16 2 9 1 Treads 27 | 2 1 1 15 2 5 1 Leg 4 | . . . . . 4 . Wheel . | . . . . . . . Hover . | . . . . . . . Flight 1 | . . . 1 . . . Utility 58 | 2 3 1 20 1 17 14 Device 16 | 1 . . 4 1 6 4 Storage 9 | 1 2 1 . . 2 3 Processor 2 | . . . 1 . 1 . Hackware . | . . . . . . . Protection 31 | . 1 . 15 . 8 7 Artifact . | . . . . . . . Weapon 62 | 2 3 6 22 6 18 5 Energy Gun 7 | . . . 6 1 . . Energy Cannon 13 | . . . 9 3 1 . Ballistic Gun 18 | 2 2 3 2 . 7 2 Ballistic Cannon . | . . . . . . . Launcher 10 | . 1 3 1 2 2 1 Special Weapon 8 | . . . 2 . 5 1 Impact Weapon 2 | . . . 2 . . . Slashing Weapon 4 | . . . . . 3 1 Piercing Weapon . | . . . . . . . Special Melee Weapon . | . . . . . . . Unidentified Prototypes 20 | . . . 6 . 9 5 Parts Lost 15 | . 1 . 9 . 3 2 Power 1 | . . . 1 . . . Propulsion 5 | . 1 . 3 . 1 . Utility 7 | . . . 3 . 2 2 Weapon 2 | . . . 2 . . . Highest Loss Streak 2 | . 1 . 2 . 2 1 To Critical Strikes . | . . . . . . . Average Slot Usage (%) 96 | . 100 100 99 100 92 81 Engine 7 | . 14 14 1 11 10 3 Core 3 | . . . 9 . . 6 Treads 22 | . 28 28 21 22 21 13 Device 5 | . . . 10 11 4 1 Storage 11 | . 14 14 11 11 11 11 Processor 1 | . . . . . 2 . Protection 20 | . 13 14 21 22 20 22 Energy Cannon 7 | . . . 15 19 . . Ballistic Gun 11 | . 28 27 3 . 12 11 Special Weapon 2 | . . . . . 5 1 Naked Turns . | . . . . . . . Heaviest Build 263 | 11 52 92 107 110 235 263 Greatest Support 60 | 40 40 40 40 40 60 60 Greatest Overweight (x) 7 | . 1 2 4 2 7 4 Average Overweight (x) 1 | . . 1 2 2 1 3 Largest Inventory Capacity 35 | 8 20 25 25 25 35 35 Average Capacity 24 | 6 17 24 25 25 24 31 Most Carried 35 | 4 20 20 25 25 35 35 Average Carried 22 | 2 11 19 24 24 22 30 Final Capacity 35 | 8 20 25 25 25 35 35 Final Carried 35 | 4 20 20 25 25 35 35 Class Distribution -------------------- 59% | Mutant 29% | Scavenger-Mutant 10% | Hauler-Mutant Dominant Class ---------------- Mutant | -10/Materials Mutant | -10/Mines Scavenger-Mutant | -9/Materials Mutant | -9/Mines Mutant | -9/Exiles Hauler-Mutant | -8/Mines Resources | -11 -10 -10 -9 -9 -9 -8 ----------- Run | Scr Mat Min Mat Min Exi Min Matter Collected 2670 | 239 270 135 777 155 852 242 Remotely . | . . . . . . . Salvage Created 3741 | 76 590 114 1846 200 660 255 Parts 318 | 6 37 15 127 11 104 18 Haulers Intercepted 7 | . 1 . 6 . . . Recyclers Shooed 10 | . 2 . 7 . . 1 Parts Field Recycled . | . . . . . . . Retrieved Matter . | . . . . . . . Parts Self-Destructed . | . . . . . . . Prevented . | . . . . . . . Kills | -11 -10 -10 -9 -9 -9 -8 ------- Run | Scr Mat Min Mat Min Exi Min Combat Hostiles Destroyed 62 | . 13 8 29 6 2 4 Melee 3 | . . . 1 . 1 1 Guns 32 | . 10 2 20 . . . Cannons 12 | . . . 8 4 . . AOE 15 | . 3 6 . 2 1 3 Classes Destroyed 15 | 2 6 . 2 3 2 . Worker 4 | . 1 . 3 . . . Builder 3 | . . . 3 . . . Tunneler 2 | 1 . . 1 . . . Hauler 7 | . 1 . 6 . . . Recycler 7 | 1 1 . 4 . . 1 Operator 2 | . 1 . 1 . . . Turret 1 | . . . . . 1 . Watcher 7 | . 2 . 5 . . . Swarmer 24 | . 3 6 12 . . 3 Grunt 20 | . 10 2 7 1 . . Duelist 1 | . . . . 1 . . Sentry 12 | . . . 10 2 . . Demolisher 1 | . . . . 1 . . Zionite 8 | . . . . . 8 . Assembled 8 | . . . . 1 7 . Best Kill Streak 8 | 2 7 4 8 3 3 3 Combat Bots Only 4 | . 3 4 4 3 1 3 Max Kills in Single Turn 6 | 1 2 2 1 1 6 3 Gunslinging . | . . . . . . . Exploded 3 | . 2 2 . 1 1 3 Melee 1 | . . . 1 . 1 1 Uniques/NPCs Destroyed 5 | . . . . . 4 1 8R-AWN (-9/Exiles) EX-DEC (-9/Exiles) EX-HEX (-9/Exiles) EX-BIN (-9/Exiles) 7V-RTL (-8/Mines) Combat | -11 -10 -10 -9 -9 -9 -8 -------- Run | Scr Mat Min Mat Min Exi Min Damage Taken 4513 | . 688 146 1381 587 810 901 Core 572 | . 150 8 139 41 99 135 Absorbed by Shields . | . . . . . . . Regen/Repaired (Parts) 235 | . . . 235 . . . Core Remaining (%) 68 | 100 . 36 . . . . Volleys Fired 353 | 6 71 11 145 17 97 6 Largest 2 | 2 2 2 2 2 2 1 Hottest 136 | 40 40 40 136 136 120 36 Shots Fired 632 | 12 140 20 278 29 147 6 Gun 432 | 12 138 16 192 . 72 2 Cannon 109 | . . . 74 24 11 . Launcher 18 | . 2 4 . 5 6 1 Special 73 | . . . 12 . 58 3 Kinetic 401 | 12 138 16 161 . 72 2 Thermal 213 | . . . 117 24 69 3 Explosive 18 | . 2 4 . 5 6 1 Electromagnetic . | . . . . . . . Robot Hit Streak 15 | 3 9 9 13 12 15 6 Robot Miss Streak 6 | 1 3 3 6 1 5 . Penetration Max 1 | . . . . . . 1 Secondary Targets 3 | . . 1 2 . . . Max Gunslinging Chain 1 | . . 1 1 . . . Shots Hit Robots 430 | 8 87 14 171 20 98 32 Core Hits 208 | 4 45 12 82 11 42 12 Critical Kills 2 | . . . 1 . 1 . Critical Parts Destroyed 4 | . . . 1 . 2 1 Critical Strikes 16 | . . . 7 . 3 6 Burn 5 | . . . 5 . . . Destroy 6 | . . . 2 . 3 1 Sever 5 | . . . . . . 5 Melee Attacks 55 | . . . 7 . 21 27 Impact 7 | . . . 7 . . . Slashing 48 | . . . . . 21 27 Piercing . | . . . . . . . Sneak Attacks . | . . . . . . . Combat Hostiles . | . . . . . . . Follow-up Attacks 9 | . . . . . 5 4 Damage Inflicted 8898 | 57 976 517 2542 729 2629 1448 Guns 2712 | 57 678 118 1212 . 601 46 Cannons 1605 | . . . 1050 368 187 . Explosions 1648 | . 280 362 . 361 540 105 Melee 2255 | . . . 52 . 939 1264 Ramming 214 | . 18 37 159 . . . Kinetic 2345 | 57 678 118 845 . 601 46 Thermal 2436 | . . . 1486 368 549 33 Explosive 1648 | . 280 362 . 361 540 105 Electromagnetic . | . . . . . . . Impact 52 | . . . 52 . . . Slashing 2203 | . . . . . 939 1264 Piercing . | . . . . . . . Highest Corruption 1 | . 1 1 . . . . Average Corruption 1 | . 1 1 . . . . Corruption Purged . | . . . . . . . Corruption Blocked . | . . . . . . . Effects 17 | . 3 14 . . . . Message Errors 3 | . 1 2 . . . . Matter Fused 1 | . . 1 . . . . Heat Flow Errors 3 | . . 3 . . . . Energy Discharges 2 | . . 2 . . . . Data Loss (minor) 1 | . . 1 . . . . Data Loss (major) 3 | . 1 2 . . . . Misfires 2 | . . 2 . . . . Alerts 2 | . 1 1 . . . . Overload Shots . | . . . . . . . Overflow Damage 123 | . . 32 29 36 26 . Projectiles 39 | . . . 29 . 10 . Explosions 84 | . . 32 . 36 16 . Melee . | . . . . . . . Knockbacks 1 | . . . 1 . . . Impact 1 | . . . 1 . . . Kinetic . | . . . . . . . Secondary . | . . . . . . . Self-Inflicted Damage 49 | . . 34 . . . 15 Shots 3 | . . 2 . . . 1 Rammed 30 | . 4 6 20 . . . Targets Rammed 33 | . 4 6 23 . . . Kicked . | . . . . . . . Crushed 3 | . . . 3 . . . Highest Temperature 209 | . 197 177 198 209 146 19 Average Temperature 56 | . 52 57 59 99 41 4 Received Heat Transfer 1056 | . 366 30 402 105 . 153 Siege Activations . | . . . . . . . Robots Corrupted . | . . . . . . . Combat Hostiles . | . . . . . . . Parts Fried . | . . . . . . . Impact Corruptions . | . . . . . . . Robots Melted . | . . . . . . . Combat Hostiles . | . . . . . . . Parts Melted 20 | . . . 11 1 8 . Heat Transferred 5592 | . . . 3330 629 1629 4 Parts Sabotaged . | . . . . . . . Parts Stolen . | . . . . . . . Parts Stripped . | . . . . . . . Power Chain Reactions . | . . . . . . . Missiles Intercepted . | . . . . . . . Alert | -11 -10 -10 -9 -9 -9 -8 ------- Run | Scr Mat Min Mat Min Exi Min Peak Influence 371 | 10 338 214 371 317 . 92 Initial 98 | . 6 . 6 98 . . Average 121 | 4 86 70 157 93 . 44 Maximum Alert Level 1 | . 1 1 1 1 . . Low Security (%) 75 | 100 83 86 66 80 . 100 Level 1 24 | . 16 13 33 19 . . Level 2 . | . . . . . . . Level 3 . | . . . . . . . Level 4 . | . . . . . . . Level 5 . | . . . . . . . High Security . | . . . . . . . Max Security . | . . . . . . . Squads Dispatched 6 | . 3 . 2 1 . . Investigation 4 | . 2 . 1 1 . . Extermination . | . . . . . . . Reinforcement 2 | . 1 . 1 . . . Assault . | . . . . . . . Garrison . | . . . . . . . Intercept . | . . . . . . . Searches Triggered . | . . . . . . . Construction Impeded . | . . . . . . . Haulers Reinforced . | . . . . . . . Active Scanning Responses . | . . . . . . . Cargo Convoy Interrupts . | . . . . . . . Stealth | -11 -10 -10 -9 -9 -9 -8 --------- Run | Scr Mat Min Mat Min Exi Min Distress Signals 11 | . 4 . 7 . . . Communications Jammed . | . . . . . . . Distress Signals . | . . . . . . . Times Spotted 133 | . 20 8 51 7 43 4 Peak Tracking Total 7 | . 5 3 6 4 7 4 Tactical Retreats 27 | . 1 . 3 . 23 . Traps | -11 -10 -10 -9 -9 -9 -8 ------- Run | Scr Mat Min Mat Min Exi Min Traps Triggered 6 | . 2 . 4 . . . Indirectly . | . . . . . . . Trap Hack Attempts . | . . . . . . . Triggered . | . . . . . . . Disarmed . | . . . . . . . Reprogrammed . | . . . . . . . Reused . | . . . . . . . Traps Extracted . | . . . . . . . Installed . | . . . . . . . Triggered . | . . . . . . . Machines | -11 -10 -10 -9 -9 -9 -8 ---------- Run | Scr Mat Min Mat Min Exi Min Machines Disabled 15 | . . 2 . 2 10 1 Max in Single Turn 3 | . . 2 . 1 3 1 Machines Sabotaged . | . . . . . . . Garrisons Compromised . | . . . . . . . Overloaded Fab Kills . | . . . . . . . Hacking | -11 -10 -10 -9 -9 -9 -8 --------- Run | Scr Mat Min Mat Min Exi Min Machines Accessed 28 | . 9 . 16 1 2 . Terminals 18 | . 7 . 11 . . . Fabricators . | . . . . . . . Repair Stations 2 | . . . 2 . . . Recycling Units 4 | . 2 . 2 . . . Scanalyzers 1 | . . . 1 . . . Garrison Access . | . . . . . . . Total Hacks 63 | . 17 . 43 1 2 . Successful 34 | . 8 . 23 1 2 . Failed 27 | . 8 . 19 . . . Catastrophic 5 | . 1 . 4 . . . Database Lockouts 2 | . 1 . 1 . . . Manual 39 | . 13 . 25 . 1 . Terminals 45 | . 15 . 30 . . . Fabricators . | . . . . . . . Repair Stations 5 | . . . 5 . . . Recycling Units 8 | . 2 . 6 . . . Scanalyzers 2 | . . . 2 . . . Garrison Access . | . . . . . . . Terminal Hacks 21 | . 4 . 14 1 2 . Record 1 | . . . . . 1 . Part Schematic 1 | . . . 1 . . . Robot Analysis 6 | . 1 . 5 . . . Open Door 1 | . . . . 1 . . Branch Access Points 2 | . 1 . 1 . . . Alert Level 3 | . . . 3 . . . Unreport Threat 2 | . 1 . 1 . . . Locate Traps 1 | . . . 1 . . . Hauler Manifests 2 | . 1 . 1 . . . Zone Layout 1 | . . . 1 . . . EX-Prototype ID Bank 1 | . . . . . 1 . Fabricator Hacks . | . . . . . . . Repair Station Hacks 4 | . . . 4 . . . Scan Component 2 | . . . 2 . . . Repair 2 | . . . 2 . . . Recycling Unit Hacks . | . . . . . . . Scanalyzer 2 | . . . 2 . . . Insert Component 1 | . . . 1 . . . Analyze 1 | . . . 1 . . . Garrison Access Hacks . | . . . . . . . Unauthorized Hacks 7 | . 4 . 3 . . . Terminals 5 | . 2 . 3 . . . Botnet 4 | . 2 . 2 . . . Operators 1 | . . . 1 . . . Fabricators . | . . . . . . . Repair Stations . | . . . . . . . Recycling Units 2 | . 2 . . . . . Tunnel 2 | . 2 . . . . . Scanalyzers . | . . . . . . . Garrison Access . | . . . . . . . Data Cores Recovered . | . . . . . . . Used . | . . . . . . . Hacking Detections 20 | . 7 . 13 . . . Full Trace Events . | . . . . . . . Feedback Events . | . . . . . . . Feedback Blocked . | . . . . . . . Robot Schematics Acquired . | . . . . . . . Robots Built . | . . . . . . . Authchips . | . . . . . . . Time . | . . . . . . . Total Robot Build Rating . | . . . . . . . Part Schematics Acquired 2 | . . . 2 . . . Parts Built . | . . . . . . . Authchips . | . . . . . . . Time . | . . . . . . . Total Part Build Rating . | . . . . . . . Parts Repaired 2 | . . . 2 . . . Time 64 | . . . 64 . . . Parts Recycled . | . . . . . . . Recycled Matter . | . . . . . . . Retrieved Matter . | . . . . . . . Retrieved Components . | . . . . . . . Parts Scanalyzed 1 | . . . 1 . . . Part Schematics Acquired 1 | . . . 1 . . . Parts Damaged . | . . . . . . . Bothacking | -11 -10 -10 -9 -9 -9 -8 ------------ Run | Scr Mat Min Mat Min Exi Min Used RIF Installer . | . . . . . . . Robots Hacked . | . . . . . . . Non-combat . | . . . . . . . Combat . | . . . . . . . Robot Hacks Applied . | . . . . . . . Relay Couplers Released . | . . . . . . . Fabnet Peak Effective % . | . . . . . . . Robots Rewired . | . . . . . . . Allies Hacked . | . . . . . . . Hacks Repelled . | . . . . . . . Allies | -11 -10 -10 -9 -9 -9 -8 -------- Run | Scr Mat Min Mat Min Exi Min Total Allies 2 | . . 2 . . . . Largest Group 2 | . . 2 . . . . Highest-Rated Group 51 | . . 51 . . . . Highest-Rated Ally 31 | . . 31 . . . . Total Orders . | . . . . . . . Ally Attacks 7 | . . 7 . . . . Total Damage 92 | . . 92 . . . . Kills 2 | . . 2 . . . . Allies Corrupted . | . . . . . . . Allies Melted . | . . . . . . . Intel | -11 -10 -10 -9 -9 -9 -8 ------- Run | Scr Mat Min Mat Min Exi Min Robot Analysis Total 6 | . 1 . 5 . . . Derelict Logs Recovered 2 | . . 1 . 1 . . Drone Launches . | . . . . . . . Drone Recoveries . | . . . . . . . Exploration | -11 -10 -10 -9 -9 -9 -8 ------------- Run | Scr Mat Min Mat Min Exi Min Turns Passed 24513 | 111 2400 1934 8514 2064 8761 729 Spaces Moved 7479 | 51 979 593 2385 621 2732 118 Core 3 | 3 . . . . . . Treads 7361 | 48 979 593 2385 621 2617 118 Legs 115 | . . . . . 115 . Wheels . | . . . . . . . Hover . | . . . . . . . Flight . | . . . . . . . Fastest Speed 50 | 50 160 240 320 320 120 250 Average Speed 300 | 153 219 316 320 320 300 441 Slowest Speed 610 | 160 240 320 480 320 610 490 Overloaded Moves . | . . . . . . . Propulsion Burnouts . | . . . . . . . Robots Hopped . | . . . . . . . Cave-ins Triggered . | . . . . . . . Exploration Rate (%) 74 | 4 99 99 97 99 92 29 Regions Visited 6 Branch Regions 4 Pre-discovered Areas 5 | . 2 1 . 1 1 . Known Exits Taken 2 | . 1 . 1 . . . Unknown Exits Taken 4 | 1 . 1 . 1 1 . Scrap Searched 5 | . . 3 . 2 . . Spaces Dug 11 | . . 11 . . . . Terrain Destroyed 188 | . 18 34 . 76 53 7 Melee . | . . . . . . . Projectile 1 | . . . . . 1 . AOE 187 | . 18 34 . 76 52 7 Terrain Rammed . | . . . . . . . Walls Destroyed . | . . . . . . . Machines Disabled . | . . . . . . . Actions | -11 -10 -10 -9 -9 -9 -8 --------- Run | Scr Mat Min Mat Min Exi Min Total 8821 | 71 1115 622 2949 670 3092 302 Wait 410 | 4 24 2 249 14 29 88 Move 7473 | 50 978 592 2384 620 2731 118 Hop . | . . . . . . . Pick Up 154 | 4 21 1 37 4 73 14 Fast Attach 58 | 7 1 . 20 1 19 10 Attach 52 | . 1 . 25 3 18 5 Detach 32 | . 1 . 8 . 16 7 Swap 58 | . 6 8 19 5 13 7 Drop 152 | . 8 2 32 6 80 24 Fire 353 | 6 71 11 145 17 97 6 Melee 46 | . . . 7 . 16 23 Ram . | . . . . . . . Kick . | . . . . . . . Crush 33 | . 4 6 23 . . . Escape Stasis . | . . . . . . . Rewire . | . . . . . . . Trap . | . . . . . . . Miscellaneous . | . . . . . . . Route ------- -11/Scrapyard -10/Materials (discovered 5 exits: *Mat x3 / *Min x2) -10/Mines (discovered 2 exits: *Mat x2) -9/Materials (discovered 6 exits: [*Mat x3] / *Min / *Sto x2) -9/Mines (discovered 3 exits: [*Mat x2] / *Exi) -9/Exiles (discovered 2 exits: [*Min x2]) -8/Mines History --------- Turn | Location | Event 3 | -11/Scrapyard | Discovered new exit (range 16) 112 | -11/Scrapyard | Entered Materials 315 | -10/Materials | Build established: Mutant 435 | -10/Materials | Discovered new exit (range 8) 670 | -10/Materials | Discovered new exit (range 15) 850 | -10/Materials | Core integrity fell below 50% 1127 | -10/Materials | Discovered new exit (range 13) 1336 | -10/Materials | Discovered new exit (range 5) 1486 | -10/Materials | Central database locked down 1673 | -10/Materials | Discovered new exit (range 11) 1702 | -10/Materials | Identified exit to Mines 2512 | -10/Materials | Entered Mines 2643 | -10/Mines | Learned Materials non-interactive machine intel 3432 | -10/Mines | Discovered new exit (range 15) 3589 | -10/Mines | Discovered new exit (range 6) 3593 | -10/Mines | Learned location of Storage (-9) 4446 | -10/Mines | Entered Materials 4446 | -9/Materials | Evolved 2 slots: Utility x2 4447 | -9/Materials | Loaded intel: 38 non-interactive machine locations 5420 | -9/Materials | Build established: Scavenger-Mutant 6031 | -9/Materials | Identified exit to Mines 6031 | -9/Materials | Identified exit to Storage 6739 | -9/Materials | Discovered new exit (range 15) 7370 | -9/Materials | Discovered new exit (range 14) 7475 | -9/Materials | Central database locked down 8703 | -9/Materials | Discovered new exit (range 12) 9945 | -9/Materials | Repaired Hrd. Light Armor Plating 11603 | -9/Materials | Repaired Hrd. Light Armor Plating 12509 | -9/Materials | Build established: Mutant 12960 | -9/Materials | Entered Mines 13065 | -9/Mines | Assembled infested the area 13131 | -9/Mines | Joined a pair of Derelicts in attacking an 0b10 outpost 13262 | -9/Mines | Discovered new exit (range 6) 13538 | -9/Mines | Met a Derelict shopkeep closing up shop 13973 | -9/Mines | Discovered new exit (range 5) 14012 | -9/Mines | Received a Rocket Launcher from a helpful Derelict 14252 | -9/Mines | Discovered new exit (range 5) 15024 | -9/Mines | Entered Exiles 15069 | -9/Exiles | Discovered new exit (range 14) 15302 | -9/Exiles | Met 8R-AWN 15347 | -9/Exiles | Met EX-HEX 15475 | -9/Exiles | Met EX-DEC 15497 | -9/Exiles | Learned location of Zion (-6) 15958 | -9/Exiles | Met EX-BIN 15996 | -9/Exiles | Aligned with FarCom system 15999 | -9/Exiles | Given EX-Vault access code 16079 | -9/Exiles | Opened EX-Vault 16188 | -9/Exiles | Warned to stay clear of 0b10 Research branches 16772 | -9/Exiles | Visited The Gauntlet 17239 | -9/Exiles | Discovered new exit (range 10) 17563 | -9/Exiles | Found Longsword +1 17567 | -9/Exiles | Found Superbattery 18190 | -9/Exiles | Found Gui. Plasma Cannon 19364 | -9/Exiles | Attacked by the Exiles 19378 | -9/Exiles | Core integrity fell below 50% 19442 | -9/Exiles | Destroyed 8R-AWN 19450 | -9/Exiles | Found Prototype Ballistic Gun 19450 | -9/Exiles | Identified 8R-AWN's Boregun 19464 | -9/Exiles | Found Prototype Device 19464 | -9/Exiles | Identified AS-neutralizer No. 17b 19469 | -9/Exiles | Found Prototype Protection 19469 | -9/Exiles | Identified 8R-AWN's Armor/EX 19522 | -9/Exiles | Found 8R-AWN's Boregun 20396 | -9/Exiles | Destroyed EX-DEC 20675 | -9/Exiles | Destroyed EX-HEX 20743 | -9/Exiles | Destroyed EX-BIN 21340 | -9/Exiles | Found Prototype Device 21340 | -9/Exiles | Identified System Purifier 21362 | -9/Exiles | Found Prototype Processor 21746 | -9/Exiles | Found Prototype Processor 21896 | -9/Exiles | Build established: Hauler-Mutant 22456 | -9/Exiles | Found Deploy-a-Sentry 23785 | -9/Exiles | Stole four prototypes: Superbattery, Gui. Plasma Cannon, Longsword +1, Deploy-a-Sentry 23785 | -9/Exiles | Entered Mines 23903 | -8/Mines | 7V-RTL came to Exiles' defense 23914 | -8/Mines | Core integrity fell below 20% 23968 | -8/Mines | Destroyed 7V-RTL 23971 | -8/Mines | Found Prototype Device 23971 | -8/Mines | Identified 7V-RTL's Ultimate Field 24011 | -8/Mines | Found Adv. Powered Armor 24016 | -8/Mines | Found Adv. Powered Armor 24514 | -8/Mines | Destroyed by H-55 Commando with Gauss Rifle Last Messages --------------- 24103_ HV Slug penetrates Wall. 24105_ Acquired Exp. Cooling System. 24106_ Acquired 82 matter. 24136_ Acquired Mak. System Shield. 24141_ Acquired Missile Launcher. 24147_ Acquired Gravity Neutralizer. 24153_ Acquired System Purifier. 24154_ Dropped Hrd. Light Armor Plating. 24179_ Acquired Exp. Energy Well. 24187_ Dropped Lgt. Treads. 24187_ Acquired Exp. Energy Well. 24193_ Dropped Lgt. Treads. 24194_ Acquired Exp. Energy Well. 24198_ R-06 Scavenger collects Com. Wheel. 24202_ R-06 Scavenger collects Tractor Beam. 24204_ Acquired 10 matter. 24205_ R-06 Scavenger collects Sml. Storage Unit. 24208_ R-06 Scavenger collects Com. Wheel. 24511_ C-30 ARC bursts open, deploying its payload. 24514_ Slug penetrates Wall. Map ----- +----------------------------------------------------+ | | | | | | | | | ?????????????????????????????????????????????????? | | ?????????????????????????????????????????????????? | | ?????????????????????????????????????????????????? | | ?????????????????????????????????????????????????? | | ?????????????????????????????????????????????????? | | ?????????????????????????????????????????????????? | | ?????????????????????????????????????????????????? | | ?????????????????????????????????????????????????? | | ?????????????????????????????????????????????????? | | ?????????????????????????????????????????????????? | | ?????????????????????????????????????????????????? | | ?????????????????????????????###?????????????????? | | ????????????????????????????# ##????????????????? | | ???????????????????????????# ?????????????????? | | ??????????????????????##### ??????????????????? | | ??????????????????????# %???????????????????? | | ????????????????????##? ???????????????????? | | ????????????????????# ????????????????????? | | ????????????????????# ? ?????????????????????? | | ??????????????????### ? #?????????????????????? | | ??????????????????? ?# #?????????????????????? | | ????????????????????# ?#@ #?????????????????????? | | ????????????????????# ## #?????????????????????? | | ????????????????????# ##????????????????????? | | ????????????????????## #????????????????????? | | ?????????????????????# #????????????????????? | | ????????????????????## ##????????????????????? | | ???????????????????## ##??####???????????????? | | ???????????????????# #??## ##??????????????? | | ????????????????#### #??# #??????????????? | | ????????????????# #### ##?????????????? | | ????????????????# ## ##????????????# | | ????????????????# #### #???????????## | | ????????????????# ???### ######?????## | | ????????????????#??????#### ## ####### | | ??????????????????????????## | | ???????????????????????????## | | ????????????????????????????## ## | | ?????????????????????????????# #? | | ????????????????????????????# ## #? | | ??????????????????????????? #### #? | | ????????????????????????? ##??# ### #? | | ???????????????????????? ####???## ##?## ##? | | ??????????????????????? ##????????####???# ##?? | | ???????????????????????? ?????????????????# #??? | | ???????????????????????????????????????????# #??? | +----------------------------------------------------+ Best States ------------- Heat Dissipation 66 Coolant Potential 50 Energy Generation 19 Energy Capacity 310 Matter Stores 300 Matter Capacity 300 Sight Range 16 Terrain Scan Density 10 Armor Coverage 950 Resistance: EX 90 Weapon Cycling 25 Evasion (%) 55 Recoil Reduction 2 Salvage Targeting 1 Item Schematics ----------------- Cargo Storage Unit | -9/Materials | Hacked Hcp. Storage Unit | -9/Materials | Scanalyzed Robot Schematics ------------------ None Fabricated ------------ Nothing Alien Tech Used ----------------- None Achievements -------------- None Challenges ------------ None Game ------ Seed WeightEtherialKatana Manual? 1 Play Time 01:50:23 Cumulative 522.3 hours Start 2022.07.10 @ 19:23:28 End 2022.07.11 @ 00:50:10 Sessions 3 Manual Loads 0 Difficulty Rogue Special Mode None Game No. 48 Rogue 43 Adventurer 5 Explorer 0 Win Type - Total 22 Types 6/4/4/0/3/1/3/0/1 Lore% 84 Gallery% 92 Achievement% 82 Wizard Run 0 Options --------- ASCII 0 Keyboard 1 Movement Arrows Keybinds 0 Fullscreen 2 Font 18/SmallcapsGlow Map View 76x50 Tactical HUD 1 Map Filters NONE Filters NONE Steam 1 RUN: 69b55052-46e7-474b-af3b-ec34f5a3e5c4